bitfinex/quotes_BTCUSD_20240929
["timestamp","ask_amount","ask_price","bid_price","bid_amount"]
[1727568001864,0.11694673,65999.0,65998.0,0.1766]
[1727568002288,0.09094673,65999.0,65998.0,0.1766]
[1727568002502,0.10494673,65999.0,65998.0,0.1766]
[1727568003733,0.10294673,65999.0,65998.0,0.1766]
[1727568004158,0.11695938,65999.0,65998.0,0.1766]
[1727568004445,0.012,65999.0,65998.0,0.1766]
[1727568004647,0.08021896,65999.0,65998.0,0.1766]
[1727568004788,0.09421896,65999.0,65998.0,0.1766]
[1727568005191,0.09422299,65999.0,65998.0,0.1766]
[1727568006181,0.026,65999.0,65998.0,0.1766]
[1727568006596,0.07148492,65999.0,65998.0,0.1766]
[1727568007017,0.026,65999.0,65998.0,0.1766]
[1727568007875,0.014,65999.0,65998.0,0.1766]
[1727568008083,0.04548492,66000.0,65998.0,0.179]
[1727568008350,0.011,65999.0,65998.0,0.0813]
[1727568008556,0.017,65999.0,65998.0,0.0813]
[1727568008757,0.006,65999.0,65998.0,0.179]
[1727568008978,0.006,65999.0,65998.0,0.29355258]
[1727568009402,0.04548492,66010.0,66005.0,0.1786]
[1727568009661,0.22690658,66006.0,66004.0,0.0977]
[1727568009867,0.04547942,66012.0,66004.0,0.0977]
[1727568010083,0.04547942,66012.0,66009.0,0.0977]
[1727568010301,0.272386,66013.0,66011.0,0.0977]
[1727568010515,0.272386,66013.0,66011.0,0.0809]
[1727568010725,0.272386,66013.0,66012.0,0.0977]
[1727568010935,0.06821913,66013.0,66012.0,0.0977]
[1727568011111,0.14393913,66013.0,66012.0,0.0977]
[1727568011328,0.12117181,66013.0,66012.0,0.0977]
[1727568011537,0.12617181,66013.0,66012.0,0.0977]
[1727568011741,0.13317181,66013.0,66012.0,0.0977]
[1727568011974,0.12617181,66013.0,66012.0,0.0977]
[1727568013004,0.07572,66013.0,66012.0,0.0977]
[1727568013422,0.08672,66013.0,66012.0,0.0987]
[1727568018640,0.11455258,66018.0,66012.0,0.0987]
[1727568019741,0.11455258,66018.0,66012.0,0.0977]
[1727568019955,0.12555258,66018.0,66012.0,0.0987]
[1727568020588,0.13555258,66018.0,66012.0,0.0987]
[1727568021665,0.021,66018.0,66012.0,0.0987]
[1727568027520,0.13555258,66018.0,66012.0,0.0987]
[1727568029076,0.13720858,66018.0,66012.0,0.0987]
[1727568031280,0.151484,66014.0,66012.0,0.0987]
[1727568032120,0.151485,66013.0,66012.0,0.0987]
[1727568032575,0.23994566,66013.0,66012.0,0.0997]
[1727568032799,0.23994566,66013.0,66012.0,0.0987]
[1727568033006,0.23994566,66013.0,66012.0,0.0977]
[1727568033230,0.23994566,66013.0,66012.0,0.0987]
[1727568033437,0.005,66013.0,66012.0,0.250187]
[1727568033649,0.005,66013.0,66012.0,0.0987]
[1727568033932,0.011,66013.0,66012.0,0.0997]
[1727568041467,0.011,66013.0,66012.0,0.100528]
[1727568046725,0.162485,66013.0,66012.0,0.100528]
[1727568046933,0.06224755,66013.0,66012.0,0.100528]
[1727568047148,0.21373255,66013.0,66012.0,0.100528]
[1727568047361,0.162485,66013.0,66012.0,0.100528]
[1727568048521,0.011,66013.0,66012.0,0.100528]
[1727568050866,0.48079158,66013.0,66012.0,0.002828]
[1727568051089,0.336385,66013.0,66012.0,0.002828]
[1727568051321,0.59263979,66013.0,66012.0,0.002828]
[1727568051538,0.55636385,66013.0,66012.0,0.002828]
[1727568051770,0.81127043,66013.0,66012.0,0.002828]
[1727568052002,0.81027043,66013.0,66012.0,0.000828]
[1727568052240,0.69791643,66013.0,66012.0,0.000828]
[1727568052443,0.71291643,66013.0,66012.0,0.002828]
[1727568052671,0.70691643,66013.0,66012.0,0.001828]
[1727568053149,0.70691643,66013.0,66012.0,0.002828]
[1727568053150,0.71891643,66013.0,66012.0,0.002828]
[1727568053379,0.71691643,66013.0,66012.0,0.002828]
[1727568053613,0.73138072,66013.0,66012.0,0.000828]
[1727568054052,0.74238072,66013.0,66012.0,0.000828]
[1727568054269,0.61268855,66013.0,66012.0,0.000828]
[1727568054511,0.75013169,66013.0,66012.0,0.000828]
[1727568054723,0.59193758,66013.0,66012.0,0.000828]
[1727568055157,0.57693758,66013.0,66012.0,0.000828]
[1727568055384,0.60593758,66013.0,66012.0,0.000828]
[1727568055601,0.51453758,66013.0,66012.0,0.000828]
[1727568055838,0.50453758,66013.0,66012.0,0.000828]
[1727568056256,0.49953758,66013.0,66012.0,0.000828]
[1727568056466,0.64086612,66013.0,66012.0,0.000828]
[1727568056685,0.62686612,66013.0,66012.0,0.000828]
[1727568056896,0.48553758,66013.0,66012.0,0.000828]
[1727568057111,0.61285053,66013.0,66012.0,0.000828]
[1727568057322,0.47653758,66013.0,66012.0,0.000828]
[1727568057531,0.46253758,66013.0,66012.0,0.000828]
[1727568057744,0.73258661,66013.0,66012.0,0.000828]
[1727568057960,0.74658661,66013.0,66012.0,0.000828]
[1727568058187,0.74657162,66013.0,66012.0,0.000828]
[1727568058619,0.61027278,66013.0,66012.0,0.000828]
[1727568058949,0.57610788,66013.0,66012.0,0.000828]
[1727568059128,0.48628765,66013.0,66012.0,0.000828]
[1727568059333,0.50028765,66013.0,66012.0,0.001828]
[1727568059472,0.59114114,66013.0,66012.0,0.001828]
[1727568060157,0.34762215,66013.0,66012.0,0.001828]
[1727568060360,0.279485,66013.0,66012.0,0.001828]
[1727568061151,0.265485,66013.0,66012.0,0.001828]
[1727568061332,0.279485,66013.0,66012.0,0.001828]
[1727568062040,0.265485,66013.0,66012.0,0.000828]
[1727568062235,0.265485,66013.0,66012.0,0.001828]
[1727568062391,0.279485,66013.0,66012.0,0.001828]
[1727568062600,0.265485,66013.0,66012.0,0.000828]
[1727568062773,0.260485,66013.0,66012.0,0.001828]
[1727568062979,0.268485,66013.0,66012.0,0.001828]
[1727568065797,0.168485,66013.0,66012.0,0.001828]
[1727568066422,0.21390923,66013.0,66012.0,0.001828]
[1727568066637,0.21390918,66013.0,66012.0,0.001828]
[1727568068267,0.21391013,66013.0,66012.0,0.001828]
[1727568071810,0.21391165,66013.0,66012.0,0.001828]
[1727568072279,0.168485,66013.0,66012.0,0.001828]
[1727568079386,0.16469784,66013.0,66012.0,0.001828]
[1727568080267,0.23283781,66013.0,66012.0,0.001828]
[1727568080489,0.16469784,66013.0,66012.0,0.001828]
[1727568083370,0.23284692,66013.0,66012.0,0.001828]
[1727568083607,0.16469784,66013.0,66012.0,0.001828]
[1727568088480,0.27743669,66013.0,66012.0,0.001828]
[1727568089123,0.34559059,66013.0,66012.0,0.001828]
[1727568089333,0.23285174,66013.0,66012.0,0.001828]
[1727568089756,0.21013537,66013.0,66012.0,0.001828]
[1727568091297,0.21013577,66013.0,66012.0,0.001828]
[1727568092203,0.16469784,66013.0,66012.0,0.001828]
[1727568094195,0.23285473,66013.0,66012.0,0.001828]
[1727568096102,0.23286008,66013.0,66012.0,0.001828]
[1727568097019,0.35705752,66013.0,66012.0,0.001828]
[1727568099240,0.28889528,66013.0,66012.0,0.001828]
[1727568100029,0.35708375,66013.0,66012.0,0.001828]
[1727568100247,0.37977827,66013.0,66012.0,0.001828]
[1727568101045,0.28889528,66013.0,66012.0,0.001828]
[1727568101721,0.16635384,66013.0,66012.0,0.001828]
[1727568102135,0.27995758,66013.0,66012.0,0.001828]
[1727568103195,0.16635384,66013.0,66012.0,0.001828]
[1727568146749,0.15735384,66013.0,66012.0,0.000828]
[1727568147659,0.14935384,66013.0,66012.0,0.000828]
[1727568147882,0.15635384,66013.0,66012.0,0.000828]
[1727568148306,0.15635384,66013.0,66012.0,0.001828]
[1727568148552,0.151501,66007.0,66002.0,0.151509]
[1727568148764,0.0455292,66008.0,66000.0,0.151513]
[1727568148986,0.0455292,66008.0,66000.0,0.15528794]
[1727568148987,0.151503,66005.0,66000.0,0.15528794]
[1727568149451,0.16008178,66003.0,65990.0,0.212259]
[1727568149666,0.1970402,66002.0,65995.0,0.00303016]
[1727568149893,0.303028,66001.0,65995.0,0.00303016]
[1727568150110,0.151512,66001.0,66000.0,0.003]
[1727568150748,0.1970412,66001.0,66000.0,0.003]
[1727568151407,0.1970412,66001.0,65991.0,0.1525335]
[1727568151408,0.151522,65997.0,65995.0,0.0903]
[1727568152049,0.303037,65999.0,65995.0,0.0903]
[1727568152272,0.151523,65997.0,65995.0,0.0903]
[1727568152508,0.15152,65998.0,65995.0,0.0903]
[1727568152721,0.15152,65998.0,65995.0,0.0953]
[1727568152933,0.001,65997.0,65995.0,0.0953]
[1727568153138,0.15152,65998.0,65995.0,0.0903]
[1727568153354,0.001,65997.0,65995.0,0.0913]
[1727568154493,0.001,65997.0,65995.0,0.242826]
[1727568154672,0.22690658,66002.0,65995.0,0.0903]
[1727568154967,0.001,65998.0,65995.0,0.0933]
[1727568155395,0.151517,65999.0,65995.0,0.0943]
[1727568155612,0.001,65997.0,65995.0,0.0933]
[1727568156055,0.454548,66000.0,65995.0,0.0903]
[1727568156289,0.151518,65999.0,65995.0,0.0903]
[1727568156508,0.001,65998.0,65995.0,0.0933]
[1727568156729,0.001,65998.0,65996.0,0.45457]
[1727568157632,0.151515,66000.0,65996.0,0.45457]
[1727568157853,0.22690658,66002.0,65996.0,0.45457]
[1727568158071,0.151516,66000.0,65996.0,0.45457]
[1727568158748,0.151516,66000.0,65996.0,0.45757]
[1727568158964,0.151516,66000.0,65996.0,0.46157]
[1727568159180,0.151516,66000.0,65996.0,0.45757]
[1727568159406,0.151516,66000.0,65996.0,0.45957]
[1727568160982,0.04550646,66003.0,65997.0,0.00303023]
[1727568161217,0.06825969,66004.0,66000.0,0.151513]
[1727568161218,0.04550646,66004.0,66000.0,0.151513]
[1727568161655,0.27241304,66005.0,66001.0,0.151511]
[1727568161659,0.04550646,66005.0,66004.0,0.151505]
[1727568161871,0.04550646,66005.0,66004.0,0.606025]
[1727568162104,0.04550646,66006.0,66005.0,0.151503]
[1727568162318,0.04550646,66008.0,66005.0,0.606013]
[1727568162802,0.04550646,66008.0,66007.0,0.151499]
[1727568163030,0.04550646,66010.0,66007.0,0.4545]
[1727568163257,0.04550646,66011.0,66007.0,0.4545]
[1727568163902,0.04550646,66011.0,66007.0,0.605998]
[1727568164360,0.001,66010.0,66007.0,0.605998]
[1727568164575,0.001,66008.0,66007.0,0.605998]
[1727568164997,0.001,66010.0,66007.0,0.605998]
[1727568165209,0.001,66010.0,66007.0,0.61280532]
[1727568165455,0.04549361,66010.0,66007.0,0.61280532]
[1727568165669,0.04849361,66011.0,66007.0,0.61280532]
[1727568165886,0.04749361,66011.0,66008.0,0.151496]
[1727568166096,0.04549361,66011.0,66008.0,0.151495]
[1727568166300,0.001,66010.0,66009.0,0.46120432]
[1727568167151,0.04549361,66011.0,66009.0,0.46120432]
[1727568167357,0.001,66010.0,66009.0,0.46120432]
[1727568170239,0.001,66010.0,66009.0,0.46447861]
[1727568174903,0.002656,66010.0,66009.0,0.88581313]
[1727568175138,0.002656,66010.0,66009.0,0.97731313]
[1727568175844,0.001656,66010.0,66009.0,0.97731313]
[1727568176084,0.002656,66010.0,66009.0,0.98431313]
[1727568176538,0.002656,66010.0,66009.0,0.97831313]
[1727568176767,0.003656,66010.0,66009.0,0.97431452]
[1727568176979,0.003656,66010.0,66009.0,0.85976194]
[1727568177459,0.003656,66010.0,66009.0,0.85876194]
[1727568177667,0.004656,66010.0,66009.0,0.86176194]
[1727568180797,0.004656,66010.0,66009.0,0.77026194]
[1727568191909,0.082412,66013.0,66010.0,0.15149]
[1727568192142,0.082412,66013.0,66011.0,0.605959]
[1727568193488,0.083412,66013.0,66011.0,0.605959]
[1727568193979,0.082412,66013.0,66011.0,0.45447]
[1727568194414,0.083412,66013.0,66011.0,0.45747]
[1727568194849,0.235898,66013.0,66011.0,0.46447]
[1727568195090,0.325987,66012.0,66011.0,0.46447]
[1727568195824,0.43550475,66012.0,66011.0,0.46447]
[1727568196055,0.325987,66012.0,66011.0,0.45747]
[1727568196289,0.325987,66012.0,66011.0,0.46047]
[1727568196516,0.39408086,66012.0,66011.0,0.46447]
[1727568196748,0.52649656,66012.0,66011.0,0.46447]
[1727568197006,0.52649656,66012.0,66011.0,0.46047]
[1727568197225,0.52749656,66012.0,66011.0,0.46047]
[1727568197676,0.52749656,66012.0,66011.0,0.45447]
[1727568197943,0.52649656,66012.0,66011.0,0.46047]
[1727568198171,0.52949656,66012.0,66011.0,0.45447]
[1727568198603,0.53415256,66012.0,66011.0,0.45447]
[1727568199688,0.4660587,66012.0,66011.0,0.45447]
[1727568200146,0.53416771,66012.0,66011.0,0.45447]
[1727568200387,0.333643,66012.0,66011.0,0.45447]
[1727568200816,0.40175205,66012.0,66011.0,0.45447]
[1727568201524,0.333643,66012.0,66011.0,0.45447]
[1727568202357,0.40175205,66012.0,66011.0,0.45447]
[1727568202569,0.333643,66012.0,66011.0,0.45447]
[1727568203100,0.40175205,66012.0,66011.0,0.45447]
[1727568203524,0.46643038,66012.0,66011.0,0.45447]
[1727568203736,0.333643,66012.0,66011.0,0.45447]
[1727568203943,0.40175205,66012.0,66011.0,0.45447]
[1727568204155,0.40175708,66012.0,66011.0,0.45447]
[1727568204586,0.40175541,66012.0,66011.0,0.45447]
[1727568204805,0.333643,66012.0,66011.0,0.45447]
[1727568207328,0.40175807,66012.0,66011.0,0.45447]
[1727568210570,0.37904625,66012.0,66011.0,0.455298]
[1727568210764,0.333643,66012.0,66011.0,0.455298]
[1727568211661,0.333643,66012.0,66011.0,0.46523343]
[1727568211868,0.333643,66012.0,66011.0,0.455298]
[1727568212076,0.333643,66012.0,66011.0,0.46201922]
[1727568215318,0.44819558,66012.0,66011.0,0.46201922]
[1727568216599,0.56509117,66012.0,66011.0,0.46201922]
[1727568216836,0.63319366,66012.0,66011.0,0.46201922]
[1727568217079,0.63319366,66012.0,66011.0,0.455298]
[1727568217080,0.56509117,66012.0,66011.0,0.455298]
[1727568217544,0.63319266,66012.0,66011.0,0.46202005]
[1727568220766,0.51629707,66012.0,66011.0,0.46202005]
[1727568221187,0.51628536,66012.0,66011.0,0.46202005]
[1727568221371,0.51628523,66012.0,66011.0,0.46202005]
[1727568221860,0.51628775,66012.0,66011.0,0.46202005]
[1727568222075,0.44819558,66012.0,66011.0,0.46202005]
[1727568222711,0.53898178,66012.0,66011.0,0.46202005]
[1727568223188,0.53898943,66012.0,66011.0,0.46202005]
[1727568223422,0.44819558,66012.0,66011.0,0.46202005]
[1727568223841,0.6649618,66012.0,66011.0,0.46202005]
[1727568224263,0.57416795,66012.0,66011.0,0.46202005]
[1727568224485,0.6649695,66012.0,66011.0,0.46202005]
[1727568224919,0.66496996,66012.0,66011.0,0.46202005]
[1727568225141,0.57416795,66012.0,66011.0,0.46202005]
[1727568226128,0.68767046,66012.0,66011.0,0.46202005]
[1727568226351,0.57416795,66012.0,66011.0,0.46202005]
[1727568227008,0.68767046,66012.0,66011.0,0.46202005]
[1727568227218,0.57416795,66012.0,66011.0,0.46202005]
[1727568227437,0.68767046,66012.0,66011.0,0.46202005]
[1727568228335,0.57416795,66012.0,66011.0,0.46202005]
[1727568228587,0.68768349,66012.0,66011.0,0.455298]
[1727568229002,0.68768349,66012.0,66011.0,0.46206269]
[1727568229217,0.68768356,66012.0,66011.0,0.46206269]
[1727568229441,0.68768816,66012.0,66011.0,0.46206269]
[1727568229680,0.68768812,66012.0,66011.0,0.46206269]
[1727568229925,0.57416795,66012.0,66011.0,0.46206269]
[1727568231046,0.57416795,66012.0,66011.0,0.455298]
[1727568231273,0.57216795,66012.0,66011.0,0.455298]
[1727568231488,0.57216795,66012.0,66011.0,0.46206284]
[1727568231700,0.57716795,66012.0,66011.0,0.46206284]
[1727568232128,0.57316795,66012.0,66011.0,0.46206284]
[1727568232587,0.57916795,66012.0,66011.0,0.46206284]
[1727568234418,0.58116795,66012.0,66011.0,0.46206284]
[1727568235303,0.46461537,66012.0,66011.0,0.46206284]
[1727568235509,0.57916795,66012.0,66011.0,0.46206284]
[1727568236781,0.58116795,66012.0,66011.0,0.46206284]
[1727568236989,0.57916795,66012.0,66011.0,0.46206284]
[1727568237443,0.71543276,66012.0,66011.0,0.455298]
[1727568237661,0.71743276,66012.0,66011.0,0.455298]
[1727568237877,0.71743276,66012.0,66011.0,0.46210347]
[1727568238580,0.71543276,66012.0,66011.0,0.46210347]
[1727568239495,0.57916795,66012.0,66011.0,0.46210347]
[1727568240777,0.46461537,66012.0,66011.0,0.46210347]
[1727568240988,0.57916795,66012.0,66011.0,0.46210347]
[1727568242681,0.45319558,66012.0,66011.0,0.46210347]
[1727568246285,0.4932934,66012.0,66011.0,0.46210347]
[1727568246521,0.35689558,66012.0,66011.0,0.46210347]
[1727568246988,0.35689558,66012.0,66011.0,0.455298]
[1727568247455,0.35689558,66012.0,66011.0,0.46212382]
[1727568247706,0.242343,66012.0,66011.0,0.46212382]
[1727568247959,0.164143,66012.0,66011.0,0.46212382]
[1727568248197,0.27779514,66012.0,66011.0,0.46212382]
[1727568248444,0.23232913,66012.0,66011.0,0.547498]
[1727568248692,0.164143,66012.0,66011.0,0.547498]
[1727568249141,0.164143,66012.0,66011.0,0.55430811]
[1727568249374,0.158143,66012.0,66011.0,0.55430811]
[1727568249607,0.153143,66012.0,66011.0,0.55630811]
[1727568249848,0.158143,66012.0,66011.0,0.55630811]
[1727568250098,0.20359645,66012.0,66011.0,0.55630811]
[1727568250330,0.153143,66012.0,66011.0,0.55630811]
[1727568250561,0.153143,66012.0,66011.0,0.55830811]
[1727568252010,0.19859645,66012.0,66011.0,0.55830811]
[1727568252475,0.19858709,66012.0,66011.0,0.55830811]
[1727568252693,0.153143,66012.0,66011.0,0.55830811]
[1727568252923,0.153143,66012.0,66011.0,0.551498]
[1727568253151,0.153143,66012.0,66011.0,0.55830811]
[1727568253393,0.19858709,66012.0,66011.0,0.55830811]
[1727568254142,0.153143,66012.0,66011.0,0.55830811]
[1727568258784,0.153143,66012.0,66011.0,0.551498]
[1727568259272,0.153143,66012.0,66011.0,0.46606696]
[1727568261364,0.2691166,66012.0,66011.0,0.46606696]
[1727568261836,0.153143,66012.0,66011.0,0.46606696]
[1727568265085,0.153143,66012.0,66011.0,0.459298]
[1727568265526,0.153143,66012.0,66011.0,0.46606696]
[1727568274789,0.29756223,66012.0,66011.0,0.46606696]
[1727568275009,0.328143,66012.0,66011.0,0.46606696]
[1727568275233,0.41898146,66012.0,66011.0,0.459298]
[1727568275446,0.54461387,66012.0,66011.0,0.459298]
[1727568275655,0.54461387,66012.0,66011.0,0.46406793]
[1727568275881,0.54461387,66012.0,66011.0,0.46206793]
[1727568276310,0.54761387,66012.0,66011.0,0.46206793]
[1727568276518,0.54461387,66012.0,66011.0,0.46206793]
[1727568276939,0.54961387,66012.0,66011.0,0.46206793]
[1727568277113,0.55161387,66012.0,66011.0,0.46206793]
[1727568277344,0.46677541,66012.0,66011.0,0.46206793]
[1727568277557,0.46477541,66012.0,66011.0,0.46206793]
[1727568277774,0.46977541,66012.0,66011.0,0.46206793]
[1727568280253,0.58332349,66012.0,66011.0,0.46206793]
[1727568281529,0.46977541,66012.0,66011.0,0.46206793]
[1727568281747,0.82468199,66012.0,66011.0,0.46206793]
[1727568281972,0.59977541,66012.0,66011.0,0.455298]
[1727568282200,0.75306532,66012.0,66011.0,0.455298]
[1727568282455,0.75306532,66012.0,66011.0,0.46213609]
[1727568282672,0.74206532,66012.0,66011.0,0.46213609]
[1727568283097,0.59177541,66012.0,66011.0,0.46213609]
[1727568283321,0.58377541,66012.0,66011.0,0.46213609]
[1727568283548,0.60277541,66012.0,66011.0,0.46213609]
[1727568283832,0.75611542,66012.0,66011.0,0.46213609]
[1727568284050,0.59577541,66012.0,66011.0,0.46213609]
[1727568284263,0.60677541,66012.0,66011.0,0.46213609]
[1727568284493,0.61217231,66012.0,66011.0,0.46213609]
[1727568285203,0.78924011,66012.0,66011.0,0.46213609]
[1727568287350,0.63592346,66012.0,66011.0,0.46213609]
[1727568287629,0.78924011,66012.0,66011.0,0.46213609]
[1727568288283,0.63592346,66012.0,66011.0,0.46213609]
[1727568292077,0.63592346,66012.0,65997.0,0.22873028]
[1727568292078,0.43887158,65998.0,65997.0,0.22873028]
[1727568292291,0.48625701,65998.0,65997.0,0.22873028]
[1727568292534,0.44087158,65998.0,65997.0,0.000828]
[1727568292781,0.56462547,65998.0,65997.0,0.000828]
[1727568292996,0.78909168,65998.0,65997.0,0.000828]
[1727568293225,0.72101353,65998.0,65997.0,0.000828]
[1727568293451,0.69725964,65998.0,65997.0,0.000828]
[1727568293867,0.69825964,65998.0,65997.0,0.000828]
[1727568294522,0.69725964,65998.0,65997.0,0.000828]
[1727568294985,0.70225964,65998.0,65997.0,0.000828]
[1727568295717,0.71125964,65998.0,65997.0,0.000828]
[1727568296341,0.74401418,65998.0,65997.0,0.000828]
[1727568296798,0.74201418,65998.0,65997.0,0.000828]
[1727568297015,0.63097895,65998.0,65997.0,0.000828]
[1727568299169,0.58562612,65998.0,65997.0,0.000828]
[1727568301165,0.48822612,65998.0,65997.0,0.000828]
[1727568302064,0.55625538,65998.0,65997.0,0.000828]
[1727568302301,0.78316196,65998.0,65997.0,0.000828]
[1727568302530,0.158526,65995.0,65994.0,0.001652]
[1727568302790,0.57277858,65995.0,65994.0,0.001652]
[1727568303018,0.158542,65988.0,65984.0,0.22690658]
[1727568303239,0.7702515,65988.0,65983.0,0.001652]
[1727568303712,0.67957078,65988.0,65983.0,0.001652]
[1727568304411,0.281545,65987.0,65983.0,0.001652]
[1727568304623,0.364445,65987.0,65983.0,0.001652]
[1727568305921,0.378445,65987.0,65983.0,0.001652]
[1727568306134,0.53483306,65987.0,65983.0,0.001652]
[1727568306344,0.63863306,65987.0,65983.0,0.001652]
[1727568306562,0.65263306,65987.0,65983.0,0.001652]
[1727568306783,0.67639396,65987.0,65983.0,0.001652]
[1727568307163,0.66239396,65987.0,65983.0,0.001652]
[1727568307396,0.67639396,65987.0,65983.0,0.001652]
[1727568307614,0.66239396,65987.0,65983.0,0.001652]
[1727568308088,0.007,65982.0,65981.0,0.001656]
[1727568308311,0.68598345,65982.0,65981.0,0.001656]
[1727568308716,0.66331751,65982.0,65981.0,0.001656]
[1727568309184,0.67531961,65982.0,65981.0,0.001656]
[1727568309570,0.68731961,65982.0,65981.0,0.001656]
[1727568309736,0.84370767,65982.0,65981.0,0.001656]
[1727568310167,0.82106013,65982.0,65981.0,0.001656]
[1727568310393,0.75319664,65982.0,65981.0,0.001656]
[1727568311241,0.82106264,65982.0,65981.0,0.001656]
[1727568311912,0.75319664,65982.0,65981.0,0.001656]
[1727568312563,0.82103688,65982.0,65981.0,0.001656]
[1727568312778,0.82666608,65982.0,65981.0,0.001656]
[1727568313002,0.81466608,65982.0,65981.0,0.001656]
[1727568313448,0.76982584,65982.0,65981.0,0.001656]
[1727568314111,0.75782584,65982.0,65981.0,0.001656]
[1727568314374,0.81603842,65982.0,65981.0,0.001656]
[1727568315024,0.77082584,65982.0,65981.0,0.001656]
[1727568315837,0.81603497,65982.0,65981.0,0.001656]
[1727568316500,0.83979639,65982.0,65981.0,0.001656]
[1727568316707,0.8397969,65982.0,65981.0,0.001656]
[1727568316918,0.79458891,65982.0,65981.0,0.001656]
[1727568317349,0.8397969,65982.0,65981.0,0.001656]
[1727568317461,0.79458891,65982.0,65981.0,0.001656]
[1727568317673,0.81603383,65982.0,65981.0,0.001656]
[1727568318515,0.77082584,65982.0,65981.0,0.001656]
[1727568319132,0.81603383,65982.0,65981.0,0.001656]
[1727568319964,0.44929319,65982.0,65981.0,0.001656]
[1727568320171,0.51863778,65982.0,65981.0,0.001656]
[1727568320585,0.54440002,65982.0,65981.0,0.001656]
[1727568323513,0.58960801,65982.0,65981.0,0.001656]
[1727568323733,0.58963469,65982.0,65981.0,0.001656]
[1727568323944,0.70078808,65982.0,65981.0,0.001656]
[1727568324158,0.74602275,65982.0,65981.0,0.001656]
[1727568325299,0.76864008,65982.0,65981.0,0.001656]
[1727568325749,0.70078808,65982.0,65981.0,0.001656]
[1727568326201,0.76864008,65982.0,65981.0,0.001656]
[1727568326408,0.70078808,65982.0,65981.0,0.001656]
[1727568326844,0.76868265,65982.0,65981.0,0.001656]
[1727568327073,0.70078808,65982.0,65981.0,0.001656]
[1727568327294,0.79125742,65982.0,65981.0,0.001656]
[1727568327947,0.79134106,65982.0,65981.0,0.001656]
[1727568328639,0.79134106,65982.0,65981.0,1e-06]
[1727568328640,0.70078808,65982.0,65981.0,1e-06]
[1727568329340,0.81399062,65982.0,65981.0,1e-06]
[1727568329816,0.89384662,65982.0,65981.0,1e-06]
[1727568330060,0.78164408,65982.0,65981.0,1e-06]
[1727568330487,0.79564408,65982.0,65981.0,1e-06]
[1727568330679,0.151588,65968.0,65967.0,0.22690658]
[1727568331030,0.26614058,65968.0,65967.0,0.22690658]
[1727568331346,0.151602,65962.0,65961.0,0.0956]
[1727568331572,0.26615458,65962.0,65961.0,0.0956]
[1727568332894,0.38372784,65962.0,65961.0,0.0956]
[1727568333109,0.26615458,65962.0,65961.0,0.0956]
[1727568334507,0.26715458,65962.0,65961.0,0.0956]
[1727568334963,0.357413,65957.0,65955.0,0.001652]
[1727568335395,0.47196558,65957.0,65955.0,0.001652]
[1727568335835,0.53993641,65957.0,65955.0,0.001652]
[1727568336065,0.62835364,65957.0,65955.0,0.001652]
[1727568336286,0.09063228,65957.0,65956.0,0.097254]
[1727568336496,0.01,65957.0,65956.0,0.097254]
[1727568336728,0.151613,65957.0,65956.0,0.1138015]
[1727568336934,0.161613,65957.0,65956.0,0.1138015]
[1727568337388,0.171613,65957.0,65956.0,0.1138015]
[1727568337604,0.26587156,65957.0,65956.0,0.1138015]
[1727568337810,0.24087156,65957.0,65956.0,0.097254]
[1727568338015,0.24487156,65957.0,65956.0,0.097254]
[1727568338235,0.24887156,65957.0,65956.0,0.097254]
[1727568338945,0.36342414,65957.0,65956.0,0.001654]
[1727568339591,0.27416558,65957.0,65956.0,0.001654]
[1727568340899,0.31948745,65957.0,65956.0,0.001654]
[1727568341109,0.27416558,65957.0,65956.0,0.001654]
[1727568341609,0.34214839,65957.0,65956.0,0.001654]
[1727568342246,0.27016558,65957.0,65956.0,0.001654]
[1727568342460,0.40339551,65957.0,65956.0,0.001654]
[1727568342713,0.35334522,65957.0,65956.0,0.001654]
[1727568342932,0.42139551,65957.0,65956.0,0.001654]
[1727568343158,0.40339551,65957.0,65956.0,0.001654]
[1727568343385,0.37489931,65957.0,65956.0,0.001654]
[1727568343840,0.28416558,65957.0,65956.0,0.001654]
[1727568344319,0.37489931,65957.0,65956.0,0.001654]
[1727568345261,0.39763617,65957.0,65956.0,0.001654]
[1727568345481,0.28416558,65957.0,65956.0,0.001654]
[1727568345702,0.49854179,65957.0,65956.0,0.001654]
[1727568346068,0.3850712,65957.0,65956.0,0.001654]
[1727568346294,0.49854179,65957.0,65956.0,0.001654]
[1727568346551,0.3850712,65957.0,65956.0,0.001654]
[1727568347316,0.49854179,65957.0,65956.0,0.001654]
[1727568347731,0.3850712,65957.0,65956.0,0.001654]
[1727568350340,0.3760712,65957.0,65956.0,0.001654]
[1727568350542,0.3670712,65957.0,65956.0,0.001654]
[1727568351783,0.3770712,65957.0,65956.0,0.001654]
[1727568351991,0.3870712,65957.0,65956.0,0.001654]
[1727568355718,0.4694712,65957.0,65956.0,0.001654]
[1727568358207,0.4594712,65957.0,65956.0,0.001654]
[1727568358435,0.4694712,65957.0,65956.0,0.001654]
[1727568358652,0.4594712,65957.0,65956.0,0.001654]
[1727568358861,0.4694712,65957.0,65956.0,0.001654]
[1727568363031,0.4974712,65957.0,65956.0,0.001654]
[1727568366827,0.4994712,65957.0,65956.0,0.001654]
[1727568367263,0.5926712,65957.0,65956.0,0.001654]
[1727568367441,0.72901331,65957.0,65956.0,0.001654]
[1727568368342,0.6926712,65957.0,65956.0,0.001654]
[1727568368804,0.71644077,65957.0,65956.0,0.001654]
[1727568371847,0.6926712,65957.0,65956.0,0.001654]
[1727568374441,0.84605607,65957.0,65956.0,0.001654]
[1727568375300,0.6926712,65957.0,65956.0,0.001654]
[1727568379108,0.71644155,65957.0,65956.0,0.001654]
[1727568381933,0.6926712,65957.0,65956.0,0.001654]
[1727568382436,0.271613,65957.0,65956.0,0.001654]
[1727568382649,0.5397351,65957.0,65956.0,0.001654]
[1727568383104,0.38616558,65957.0,65956.0,0.001654]
[1727568383344,0.04900711,65974.0,65958.0,0.345419]
[1727568383568,0.04900711,65974.0,65972.0,0.151579]
[1727568383569,0.18470658,65973.0,65972.0,0.151579]
[1727568383827,0.22690658,65973.0,65972.0,0.26783158]
[1727568384072,0.001656,65981.0,65980.0,0.151561]
[1727568384297,0.001656,65981.0,65980.0,0.15459185]
[1727568384540,0.001656,65981.0,65980.0,0.17413974]